bitfinex-derivatives/quotes_ETHF0:USTF0_20250314
["timestamp","ask_amount","ask_price","bid_price","bid_amount"]
[1741925991083,2.47848,1895.2,1895.1,1.314]
[1741925994594,4.77448,1895.2,1895.1,2.644]
[1741926001396,6.9268,1895.2,1894.9,0.00792246]
[1741926001597,1.05559,1895.0,1894.9,0.72052246]
[1741926001793,1.05559,1895.0,1894.9,2.13172246]
[1741926002000,1.05559,1895.0,1894.9,0.00792246]
[1741926002197,2.38089,1895.0,1894.9,0.00792246]
[1741926002590,5.58869,1895.0,1894.9,0.00792246]
[1741926003294,2.38089,1895.0,1894.9,0.00792246]
[1741926005695,1.3253,1895.0,1894.6,3.2078]
[1741926005897,1.05576,1894.7,1894.6,3.2078]
[1741926006802,1.05582,1894.6,1894.5,0.657]
[1741926007006,3.35182,1894.6,1894.5,0.00528167]
[1741926007301,4.71062,1894.6,1894.5,0.00528167]
[1741926008393,3.6548,1894.6,1894.5,1.39778167]
[1741926008707,4.71062,1894.6,1894.5,1.39778167]
[1741926009801,4.71062,1894.6,1894.5,0.00528167]
[1741926010902,5.39372,1894.6,1894.5,0.00528167]
[1741926011601,1.05596,1894.4,1894.2,4.97124]
[1741926011801,1.05596,1894.4,1894.3,2.0442]
[1741926014008,1.05593,1894.4,1894.3,2.0442]
[1741926015505,3.2078,1894.5,1894.2,0.7074]
[1741926015707,1.05598,1894.3,1894.2,1.76344]
[1741926016007,3.2078,1894.5,1894.2,0.7074]
[1741926016210,4.26369,1894.5,1894.3,1.05595]
[1741926016410,3.2078,1894.5,1894.2,0.7074]
[1741926016614,1.05596,1894.4,1894.2,1.76341]
[1741926016815,3.2078,1894.5,1894.3,2.0937]
[1741926017011,1.05592,1894.5,1894.4,1.3819]
[1741926018319,1.05593,1894.4,1894.3,0.7118]
[1741926018512,1.05593,1894.4,1894.3,2.0937]
[1741926020510,1.05593,1894.4,1894.3,1.3819]
[1741926022111,3.2078,1894.5,1894.3,1.3819]
[1741926022511,3.35985,1894.6,1894.3,1.3819]
[1741926022713,3.35985,1894.6,1894.3,2.43784]
[1741926023218,1.05587,1894.5,1894.4,1.397]
[1741926025209,1.05587,1894.5,1894.4,2.45293]
[1741926025419,2.304,1894.6,1894.4,2.45293]
[1741926025619,3.35982,1894.6,1894.5,1.2968]
[1741926025817,0.00792246,1894.8,1894.7,1.05576]
[1741926026009,3.0052,1895.3,1894.6,4.5369]
[1741926026212,1.05561,1895.0,1894.8,3.2078]
[1741926026423,2.311,1895.3,1894.9,1.9666]
[1741926026719,3.36851,1895.2,1895.0,1.9561]
[1741926026919,3.36851,1895.2,1895.1,1.2968]
[1741926031219,4.77961,1895.2,1895.1,1.2968]
[1741926033924,1.05554,1895.1,1895.0,0.6593]
[1741926034133,1.05559,1895.0,1894.9,0.00792245]
[1741926034428,1.74919,1895.0,1894.9,0.00792245]
[1741926034629,3.16249,1895.0,1894.9,0.00792245]
[1741926035018,2.46889,1895.0,1894.9,0.00792245]
[1741926035220,1.4133,1895.0,1894.9,0.00792245]
[1741926035421,1.4133,1895.0,1894.9,1.30532245]
[1741926036523,2.46889,1895.0,1894.9,1.30532245]
[1741926038735,2.46889,1895.0,1894.9,0.00792245]
[1741926039227,1.05576,1894.7,1894.6,3.2078]
[1741926039827,1.4037,1894.7,1894.4,2.1578]
[1741926040030,1.05593,1894.4,1894.3,0.7022]
[1741926040725,1.05598,1894.3,1894.2,0.718]
[1741926040926,2.45448,1894.3,1894.2,0.718]
[1741926041133,1.3985,1894.3,1894.2,2.1535]
[1741926041338,1.3985,1894.3,1894.2,3.20954]
[1741926041938,2.306,1894.5,1894.2,2.1535]
[1741926042241,2.45444,1894.4,1894.3,1.4355]
[1741926043034,1.05598,1894.3,1894.2,0.718]
[1741926043234,2.45448,1894.3,1894.2,2.1535]
[1741926045240,1.05604,1894.2,1894.1,3.2078]
[1741926045543,1.4381,1894.2,1894.1,3.2078]
[1741926045841,1.4381,1894.2,1894.1,5.5672]
[1741926046642,2.49414,1894.2,1894.1,4.5111]
[1741926048441,2.49414,1894.2,1894.1,5.2281]
[1741926050635,3.7421,1894.2,1894.0,0.6487]
[1741926050950,2.4817,1894.1,1894.0,0.6487]
[1741926051245,1.4256,1894.1,1893.9,3.2078]
[1741926051443,1.05621,1893.9,1893.8,0.719]
[1741926052038,2.48181,1893.9,1893.8,0.719]
[1741926052439,1.4256,1893.9,1893.8,0.719]
[1741926052639,3.0183,1894.2,1893.8,2.0915]
[1741926052849,1.05621,1893.9,1893.8,3.14775]
[1741926053039,1.05621,1893.9,1893.8,0.719]
[1741926054747,2.38521,1893.9,1893.8,0.719]
[1741926055644,1.329,1893.9,1893.8,1.77526]
[1741926055849,1.05617,1894.0,1893.8,1.77526]
[1741926056449,1.05615,1894.0,1893.8,1.77526]
[1741926056745,1.05615,1894.0,1893.9,4.26401]
[1741926056949,4.66583,1894.1,1893.9,4.26401]
[1741926057144,1.05615,1894.0,1893.9,3.2078]
[1741926057348,2.36385,1894.0,1893.9,3.2078]
[1741926057541,2.36385,1894.0,1893.9,4.26401]
[1741926058144,2.36385,1894.0,1893.9,3.2078]
[1741926058954,2.36385,1894.0,1893.8,1.77524]
[1741926058955,1.05621,1893.9,1893.8,1.77525]
[1741926059251,2.41981,1893.9,1893.8,1.77525]
[1741926059638,2.41981,1893.9,1893.8,0.719]
[1741926059842,1.3636,1893.9,1893.8,1.77526]
[1741926060041,2.41981,1893.9,1893.8,0.719]
[1741926060238,2.41981,1893.9,1893.8,1.77526]
[1741926060442,2.41981,1893.9,1893.8,0.719]
[1741926061147,1.05626,1893.8,1893.7,0.6618]
[1741926061446,2.41986,1893.8,1893.7,0.6618]
[1741926061639,1.3636,1893.8,1893.7,0.6618]
[1741926061841,1.05622,1893.9,1893.7,1.71808]
[1741926062049,1.05626,1893.8,1893.7,1.71808]
[1741926062351,1.3722,1893.9,1893.7,1.71808]
[1741926062650,2.42844,1893.9,1893.7,1.7181]
[1741926063042,1.05626,1893.8,1893.7,0.6618]
[1741926063249,2.42846,1893.8,1893.7,0.6618]
[1741926064949,3.2078,1894.0,1893.7,0.6618]
[1741926065149,3.2078,1894.0,1893.8,1.05626]
[1741926065150,1.05622,1893.9,1893.8,1.05626]
[1741926065348,1.05622,1893.9,1893.7,4.92588]
[1741926065349,2.37632,1893.9,1893.7,4.92588]
[1741926065554,1.05617,1894.0,1893.8,1.05626]
[1741926065756,2.37627,1894.0,1893.9,3.2078]
[1741926065947,2.37627,1894.0,1893.9,3.9161]
[1741926068052,1.3201,1894.0,1893.9,4.97231]
[1741926068252,1.3201,1894.0,1893.9,3.9161]
[1741926068459,2.37625,1894.0,1893.9,3.9161]
[1741926069158,1.3201,1894.0,1893.7,3.8696]
[1741926069354,1.05626,1893.8,1893.7,3.8696]
[1741926069857,2.43576,1893.9,1893.7,4.92592]
[1741926070056,2.43575,1893.9,1893.7,4.92592]
[1741926070358,1.3795,1893.8,1893.7,4.92592]
[1741926072751,2.301,1894.1,1893.7,3.8696]
[1741926073058,1.3808,1894.0,1893.8,1.4347]
[1741926073251,2.437,1894.0,1893.8,2.49095]
[1741926073560,1.05621,1893.9,1893.8,1.4347]
[1741926073758,2.43701,1893.9,1893.8,1.4347]
[1741926074059,2.43701,1893.9,1893.8,2.49096]
[1741926074255,1.3808,1893.9,1893.8,2.49096]
[1741926074456,2.43701,1893.9,1893.8,2.49096]
[1741926075159,2.43701,1893.9,1893.8,4.6425]
[1741926076461,1.3808,1893.9,1893.8,4.6425]
[1741926076646,3.35213,1894.1,1893.8,4.6425]
[1741926076853,1.05615,1894.0,1893.9,1.3296]
[1741926077053,2.35965,1894.0,1893.9,1.3296]
[1741926078663,1.3035,1894.0,1893.7,0.6618]
[1741926078961,2.49561,1893.9,1893.8,1.4115]
[1741926079351,1.05626,1893.8,1893.7,0.6618]
[1741926079557,2.49566,1893.8,1893.7,0.6618]
[1741926080756,2.49566,1893.8,1893.7,2.0359]
[1741926082269,1.4394,1893.8,1893.7,2.0359]
[1741926082466,2.49566,1893.8,1893.7,2.0359]
[1741926082858,1.05632,1893.7,1893.6,3.2078]
[1741926083164,2.41662,1893.7,1893.6,3.2078]
[1741926083552,2.41662,1893.7,1893.6,4.5291]
[1741926085058,1.3603,1893.7,1893.6,5.58547]
[1741926085560,1.3603,1893.7,1893.6,4.5291]
[1741926085762,1.3603,1893.7,1893.6,5.58547]
[1741926086663,2.41662,1893.7,1893.6,4.5291]
[1741926086852,1.3603,1893.7,1893.6,4.5291]
[1741926087055,2.41662,1893.7,1893.6,4.5291]
[1741926087459,2.293,1893.8,1893.6,4.5291]
[1741926087761,2.44981,1893.9,1893.7,2.40368]
[1741926087962,2.44981,1893.9,1893.8,2.0293]
[1741926088363,1.3936,1893.9,1893.8,2.0293]
[1741926088564,1.3936,1893.9,1893.8,5.2371]
[1741926088766,2.44981,1893.9,1893.8,5.2371]
[1741926088956,0.00792246,1894.3,1893.8,5.2371]
[1741926089152,0.00792246,1894.3,1894.0,3.2078]
[1741926089153,1.0561,1894.1,1894.0,3.2078]
[1741926089460,1.0561,1894.1,1894.0,6.32615]
[1741926089862,2.44966,1894.2,1894.0,6.32615]
[1741926090058,1.3936,1894.2,1894.1,1.4077]
[1741926090263,2.44964,1894.2,1894.1,1.4077]
[1741926091365,1.3936,1894.2,1894.1,2.4638]
[1741926093564,0.00792246,1894.3,1894.2,1.05604]
[1741926093763,1.40302246,1894.3,1894.2,3.12004]
[1741926093959,0.6519,1894.7,1894.2,6.32784]
[1741926094165,2.45099,1894.5,1894.3,3.08674]
[1741926094368,1.3951,1894.5,1894.4,5.64493]
[1741926094562,1.05578,1894.7,1894.5,1.05582]
[1741926094778,1.05574,1894.8,1894.6,1.73859]
[1741926094967,1.05574,1894.8,1894.7,0.6496]
[1741926095574,1.05576,1894.7,1894.6,0.6828]
[1741926096278,1.05576,1894.7,1894.6,2.1122]
[1741926097271,2.43874,1894.8,1894.6,3.16802]
[1741926097472,2.43874,1894.8,1894.7,1.4294]
[1741926097973,1.383,1894.8,1894.7,1.4294]
[1741926098275,1.383,1894.8,1894.7,2.48516]
[1741926099976,1.383,1894.8,1894.7,1.4294]
[1741926100275,2.43871,1894.8,1894.7,1.4294]
[1741926103577,1.383,1894.8,1894.7,1.4294]
[1741926103779,1.383,1894.8,1894.7,2.48516]
[1741926104377,0.00792246,1894.9,1894.7,1.4294]
[1741926104582,0.00792246,1894.9,1894.8,4.93501]
[1741926104781,0.00792246,1894.9,1894.8,3.8793]
[1741926104977,1.06357246,1894.9,1894.8,3.8793]
[1741926105481,0.00792246,1894.9,1894.8,3.8793]
[1741926105680,0.00792246,1894.9,1894.8,6.24311]
[1741926105881,1.06357246,1894.9,1894.8,5.1874]
[1741926106778,0.00792246,1894.9,1894.8,5.1874]
[1741926106977,1.06357246,1894.9,1894.8,5.1874]
[1741926107177,0.00792246,1894.9,1894.8,6.24311]
[1741926109789,1.06357246,1894.9,1894.8,5.1874]
[1741926109986,2.41947246,1894.9,1894.8,4.5159]
[1741926110282,3.07907246,1894.9,1894.8,4.5159]
[1741926110472,1.05582,1894.6,1894.5,9.706]
[1741926110676,1.05593,1894.4,1894.3,3.2078]
[1741926110877,1.05593,1894.4,1894.3,4.5604]
[1741926111377,2.43413,1894.4,1894.3,4.5604]
[1741926111581,2.43413,1894.4,1894.3,3.2078]
[1741926111882,2.43413,1894.4,1894.1,0.00792246]
[1741926111883,1.05604,1894.2,1894.1,0.00792246]
[1741926112081,2.43422,1894.3,1894.1,0.00792246]
[1741926112382,2.43424,1894.2,1894.1,1.36052246]
[1741926112975,2.43424,1894.2,1894.1,0.00792246]
[1741926114376,3.8782,1894.2,1893.9,3.2078]
[1741926114588,1.05615,1894.0,1893.9,3.2078]
[1741926114980,2.42975,1894.0,1893.9,3.2078]
[1741926117189,2.42975,1894.0,1893.9,3.2078]
[1741926117582,1.3736,1894.0,1893.9,3.2078]
[1741926117783,1.3736,1894.0,1893.9,4.5363]
[1741926118379,3.2078,1894.4,1894.1,1.05609]
[1741926118582,0.7063,1894.6,1894.2,4.5977]
[1741926118583,1.2997,1894.3,1894.2,4.5977]
[1741926118888,2.35568,1894.3,1894.2,4.5977]
[1741926119281,2.35568,1894.3,1894.2,2.7184]
[1741926120281,1.2997,1894.3,1894.2,6.98224]
[1741926121889,1.0559,1894.5,1894.3,1.05597]
[1741926122089,2.3778,1894.5,1894.4,1.3516]
[1741926122293,3.2078,1894.6,1894.4,1.3516]
[1741926122486,1.05587,1894.5,1894.4,1.3516]
[1741926122785,2.37777,1894.5,1894.4,1.3516]
[1741926124196,1.3219,1894.5,1894.4,5.61533]
[1741926124495,1.05576,1894.7,1894.4,5.61533]
[1741926124687,1.4403,1894.6,1894.5,1.4324]
[1741926124884,2.49612,1894.6,1894.5,1.4324]
[1741926125886,1.4403,1894.6,1894.4,3.2078]
[1741926126085,2.971,1894.8,1894.4,3.2078]
[1741926126086,1.331,1894.5,1894.4,4.6262]
[1741926126487,1.331,1894.5,1894.4,5.68213]
[1741926127294,3.21572246,1894.9,1894.4,4.6262]
[1741926127500,1.331,1894.7,1894.5,1.4184]
[1741926127696,1.331,1894.7,1894.5,2.47425]
[1741926127896,2.38678,1894.7,1894.6,0.6941]
[1741926128197,2.38678,1894.7,1894.6,2.1125]
[1741926130300,1.05587,1894.5,1894.4,3.2078]
[1741926130502,1.05587,1894.5,1894.4,4.5651]
[1741926130800,1.05587,1894.5,1894.4,5.62103]
[1741926131300,1.05587,1894.5,1894.4,4.5651]
[1741926131693,1.05593,1894.4,1894.3,0.6679]
[1741926132195,1.05593,1894.4,1894.3,1.9857]
[1741926133292,1.05598,1894.3,1894.2,3.2078]
[1741926133598,1.74788,1894.3,1894.2,3.2078]
[1741926134098,1.05598,1894.3,1894.2,3.2078]
[1741926134297,1.3464,1894.6,1894.2,3.2078]
[1741926134602,2.298,1894.5,1894.3,3.02887]
[1741926134801,2.298,1894.5,1894.4,2.0111]
[1741926135002,2.298,1894.5,1894.4,3.06703]
[1741926135404,2.298,1894.5,1894.4,2.0111]
[1741926135703,2.298,1894.5,1894.4,3.06703]
[1741926136604,2.298,1894.5,1894.4,6.27483]
[1741926136802,2.298,1894.5,1894.4,5.2189]
[1741926137003,3.35387,1894.5,1894.4,5.2189]
[1741926137506,1.05587,1894.5,1894.4,5.2189]
[1741926137804,1.05587,1894.5,1894.4,6.27483]
[1741926137998,3.3568,1894.7,1894.5,1.05586]
[1741926138199,3.35676,1894.7,1894.6,1.3937]
[1741926139201,2.301,1894.7,1894.6,1.3937]
[1741926139397,2.301,1894.7,1894.6,2.44952]
[1741926139597,3.35676,1894.7,1894.6,1.3937]
[1741926142106,1.05576,1894.7,1894.6,1.3937]
[1741926144003,2.298,1894.8,1894.4,0.6933]
[1741926144203,1.05587,1894.5,1894.4,2.1286]
[1741926144602,1.05598,1894.3,1894.2,9.706]
[1741926145009,1.05598,1894.3,1894.2,11.711]
[1741926145207,3.2078,1894.3,1894.0,0.6844]
[1741926145403,1.0561,1894.1,1894.0,0.6844]
[1741926146599,1.0561,1894.1,1894.0,2.0226]
[1741926146804,1.0561,1894.1,1894.0,1.3382]
[1741926147320,1.05615,1894.0,1893.9,0.6668]
[1741926147711,1.05615,1894.0,1893.9,2.0929]
[1741926149296,1.05615,1894.0,1893.9,0.6668]
[1741926150913,1.05621,1893.9,1893.8,3.2078]
[1741926152504,1.05626,1893.8,1893.7,1.4261]
[1741926152715,2.44256,1893.8,1893.7,1.4261]
[1741926155211,1.3863,1893.8,1893.6,1.3362]
[1741926155412,2.41242,1893.7,1893.6,2.6828]
[1741926163734,2.41242,1893.7,1893.6,0.6518]
[1741926164423,2.41242,1893.7,1893.6,1.9954]
[1741926167419,2.41242,1893.7,1893.6,1.3436]
[1741926167723,2.41242,1893.7,1893.3,4.26432]
[1741926167724,1.05643,1893.5,1893.4,0.6783]
[1741926167916,1.05643,1893.5,1893.4,1.3294]
[1741926169128,1.05643,1893.5,1893.4,2.6584]
[1741926172224,1.05643,1893.5,1893.4,3.71489]
[1741926172424,1.05643,1893.5,1893.4,0.6783]
[1741926172926,2.41743,1893.5,1893.4,0.6783]
[1741926174130,1.05654,1893.3,1893.2,1.4222]
[1741926174325,1.05654,1893.3,1893.2,2.0804]
[1741926175228,3.34454,1893.3,1893.2,2.0804]
[1741926175620,2.288,1893.3,1893.1,3.9153]
[1741926175820,2.3702,1893.2,1893.1,3.9153]
[1741926176026,1.3136,1893.2,1893.1,3.9153]
[1741926176229,3.34455,1893.3,1893.1,3.9153]
[1741926176428,2.288,1893.3,1893.1,3.9153]
[1741926176636,3.34456,1893.3,1893.1,4.97192]
[1741926176833,2.288,1893.3,1893.2,1.0566]
[1741926177035,2.288,1893.3,1893.1,3.9153]
[1741926177230,3.6016,1893.5,1893.1,3.9153]
[1741926177436,1.05643,1893.5,1893.3,3.2078]
[1741926177637,1.05643,1893.5,1893.4,1.3495]
[1741926180435,2.37459,1893.6,1893.4,2.40599]
[1741926181739,1.05643,1893.5,1893.4,2.40599]
[1741926182637,1.03293084,1893.9,1893.4,1.3495]
[1741926182834,1.03293084,1893.9,1893.8,1.05626]
[1741926183132,2.08916084,1893.9,1893.7,4.26408]
[1741926183338,1.03293084,1893.9,1893.8,2.46266]
[1741926183634,0.00792246,1893.9,1893.8,1.4064]
[1741926183836,0.00792246,1893.9,1893.8,2.46266]
[1741926184532,1.06413246,1893.9,1893.8,1.4064]
[1741926184733,0.00792246,1893.9,1893.8,2.46266]
[1741926186948,1.06413246,1893.9,1893.8,1.4064]
[1741926188146,2.47553246,1893.9,1893.8,1.4064]
[1741926188951,1.41932246,1893.9,1893.8,2.46266]
[1741926189141,0.00792246,1893.9,1893.8,2.46266]
[1741926191154,0.00792246,1893.9,1893.8,3.83986]
[1741926195549,1.44262246,1893.9,1893.8,3.83986]
[1741926201959,2.49883246,1893.9,1893.8,2.7836]
[1741926206160,1.44262246,1893.9,1893.5,3.2078]
[1741926206357,2.0259,1893.8,1893.5,1.2999]
[1741926206661,2.0259,1893.8,1893.6,1.2999]
[1741926206662,2.39743,1893.7,1893.6,1.2999]
[1741926211468,1.3411,1893.7,1893.6,2.35627]
[1741926213263,1.3411,1893.7,1893.6,5.56407]
[1741926215574,1.3411,1893.7,1893.6,4.5077]
[1741926215771,2.39742,1893.7,1893.6,5.56407]
[1741926215972,1.3411,1893.7,1893.6,5.56407]
[1741926216365,2.39742,1893.7,1893.6,4.5077]
[1741926216670,2.39742,1893.7,1893.6,5.56407]
[1741926217269,1.3411,1893.7,1893.6,5.56407]
[1741926217568,1.4055,1893.8,1893.7,1.05632]
[1741926217763,1.4055,1893.8,1893.7,3.82472]
[1741926217966,2.46176,1893.8,1893.7,2.7684]
[1741926221069,1.4055,1893.8,1893.7,3.82472]
[1741926221270,0.00792246,1893.9,1893.7,2.7684]
[1741926221471,2.36584246,1893.9,1893.8,1.3295]
[1741926221871,1.30962246,1893.9,1893.8,1.3295]
[1741926222173,1.30962246,1893.9,1893.8,2.38576]
[1741926222174,0.00792246,1893.9,1893.8,2.38576]
[1741926222363,0.00792246,1893.9,1893.8,5.59356]
[1741926224281,1.05594,1894.4,1894.2,1.05599]
[1741926224581,1.3972,1894.3,1894.2,1.05599]
[1741926225267,1.05591,1894.5,1894.3,1.05597]
[1741926225576,1.40512246,1894.4,1894.3,1.05597]
[1741926226082,0.00792246,1894.4,1894.3,1.05597]
[1741926227174,2.45215246,1894.4,1894.2,4.2638]
[1741926227373,1.3883,1894.3,1894.2,4.2638]
[1741926227575,0.00792246,1894.4,1894.2,3.2078]
[1741926227776,0.00792246,1894.4,1894.3,1.05598]
[1741926229173,1.39622246,1894.4,1894.3,1.05598]
[1741926230584,0.00792246,1894.4,1894.3,1.05598]
[1741926234078,0.00792246,1894.4,1894.3,10.76198]
[1741926234277,1.05571,1894.8,1894.6,1.05576]
[1741926234475,1.05572,1894.8,1894.5,3.2078]
[1741926235377,1.06364246,1894.8,1894.5,3.2078]
[1741926235684,1.06364246,1894.8,1894.6,1.05578]
[1741926237689,1.3084,1894.7,1894.6,1.05578]
[1741926240990,1.3084,1894.7,1894.6,1.71068]
[1741926241190,1.3084,1894.7,1894.6,3.03278]
[1741926241585,1.3084,1894.7,1894.6,3.68668]
[1741926244790,0.00792246,1894.8,1894.7,1.05576]
[1741926244992,0.00792246,1894.8,1894.7,2.46166]
[1741926245290,0.00792246,1894.8,1894.7,5.66946]
[1741926245491,0.00792246,1894.8,1894.7,15.37546]
[1741926246391,1.3167,1895.1,1894.7,14.3197]
[1741926246579,1.3167,1895.1,1895.0,1.05559]
[1741926247184,1.3167,1895.1,1895.0,2.46149]
[1741926247588,6.1396,1895.6,1895.0,11.1119]
[1741926247788,6.1396,1895.6,1894.9,4.5605]
[1741926247789,0.6588,1895.6,1895.1,14.3197]
[1741926247995,1.42992246,1895.5,1895.3,3.2078]
[1741926248194,1.42992246,1895.5,1895.4,2.0169]
[1741926248492,0.00792246,1895.5,1895.4,3.07227]
[1741926248695,1.02028785,1896.1,1896.0,1.05504]
[1741926248891,1.422,1896.3,1896.2,1.05493]
[1741926249190,2.274,1896.7,1896.1,12.4356]
[1741926249386,2.274,1896.7,1896.5,1.05476]
[1741926249387,1.422,1896.6,1896.5,1.05476]
[1741926249592,1.422,1896.6,1896.4,1.3329]
[1741926249796,1.422,1896.6,1896.4,2.39563246]
[1741926250497,1.422,1896.6,1896.4,2.39561246]
[1741926250798,1.422,1896.6,1896.5,1.05476]
[1741926251097,1.422,1896.6,1896.5,1.324]
[1741926251593,1.422,1896.6,1896.5,2.37876]
[1741926251794,1.422,1896.6,1896.5,1.324]
[1741926252183,0.00792246,1896.7,1896.5,4.5318]
[1741926252499,0.00792246,1896.7,1896.6,10.7607]
[1741926252697,0.00792246,1896.7,1896.6,11.415]
[1741926253090,0.00792246,1896.7,1896.6,13.693]
[1741926257488,0.00792246,1896.7,1896.6,11.415]
[1741926257696,0.00792246,1896.7,1896.6,9.706]
[1741926258101,1.36482246,1896.7,1896.6,9.706]
[1741926259001,2.41947246,1896.7,1896.6,9.706]
[1741926260006,1.36482246,1896.7,1896.6,9.706]
[1741926260405,1.36482246,1896.7,1896.6,10.7607]
[1741926260703,1.36482246,1896.7,1896.6,13.9685]
[1741926261090,0.00792246,1896.7,1896.6,13.9685]
[1741926261301,0.00792246,1896.7,1896.6,14.6556]
[1741926262914,2.276,1897.5,1896.7,2.63663]
[1741926263111,1.4335,1897.2,1897.1,1.05437]
[1741926263314,1.4335,1897.2,1897.1,4.26217]
[1741926263917,0.6515,1897.6,1897.4,1.05423]
[1741926264121,1.4335,1897.5,1897.4,1.05426]
[1741926264422,1.4335,1897.5,1897.3,1.0543]
[1741926265515,2.48775,1897.5,1897.2,13.37595]
[1741926265715,2.48775,1897.5,1897.2,12.72585]
[1741926266120,1.4335,1897.5,1897.3,1.05429]
[1741926266322,1.4335,1897.5,1897.2,11.6715]
[1741926266515,1.0543,1897.4,1897.2,10.76035]
[1741926266722,1.3254,1897.3,1897.2,9.706]
[1741926267525,2.37971,1897.3,1897.2,9.706]
[1741926267720,1.3254,1897.3,1897.2,9.706]
[1741926267915,2.37971,1897.3,1897.2,9.706]
[1741926268625,1.05455,1896.9,1896.8,3.2078]
[1741926269017,5.4898,1897.1,1896.6,3.2078]
[1741926269219,1.4381,1896.8,1896.5,11.1143]
[1741926269419,1.05469,1896.7,1896.5,12.16905]
[1741926269621,1.4381,1896.6,1896.5,11.1143]
[1741926269829,1.4381,1896.6,1896.5,12.16906]
[1741926270531,1.4381,1896.6,1896.5,11.1143]
[1741926271022,1.4381,1896.6,1896.4,3.21572246]
[1741926271331,1.4381,1896.6,1896.4,4.60352246]
[1741926271629,2.49281,1896.6,1896.4,2.45051246]
[1741926272132,2.49281,1896.6,1896.4,1.39572246]
[1741926272331,1.4381,1896.6,1896.4,1.39572246]
[1741926272522,1.05476,1896.5,1896.4,0.00792246]
[1741926273731,4.26256,1896.5,1896.4,0.00792246]
[1741926274126,8.6429,1896.5,1895.9,10.37]
[1741926274427,8.6429,1896.5,1896.0,1.05501]
[1741926274428,1.3202,1896.4,1896.0,1.05501]
[1741926274628,1.05497,1896.2,1896.0,2.40741]
[1741926274931,1.3202,1896.1,1896.0,1.3524]
[1741926275433,1.3202,1896.1,1896.0,2.40744]
[1741926276128,1.3202,1896.1,1896.0,1.3524]
[1741926276822,2.37518,1896.1,1896.0,1.3524]
[1741926277024,1.3202,1896.1,1896.0,1.3524]
[1741926277525,1.3202,1896.1,1896.0,2.40744]
[1741926277726,1.3202,1896.1,1896.0,1.3524]
[1741926278332,1.3202,1896.1,1896.0,2.40744]
[1741926280532,1.3202,1896.1,1896.0,1.3524]
[1741926281533,1.3202,1896.1,1896.0,2.40744]
[1741926284033,1.3202,1896.1,1896.0,1.3524]
[1741926284633,1.3202,1896.1,1895.9,4.93478246]
[1741926284830,1.3202,1896.1,1896.0,1.3384]
[1741926285339,2.37518,1896.1,1896.0,1.3384]
[1741926285537,1.3202,1896.1,1896.0,1.3384]
[1741926286038,2.37518,1896.1,1896.0,1.3384]
[1741926286836,1.3202,1896.1,1895.9,4.93481246]
[1741926287034,2.3752,1896.1,1895.9,6.27316246]
[1741926287535,1.3202,1896.1,1896.0,1.05504]
[1741926287732,1.3202,1896.1,1896.0,2.48394]
[1741926288339,2.37518,1896.1,1896.0,2.48394]
[1741926289237,1.3202,1896.1,1896.0,2.48394]
[1741926289436,3.2078,1896.3,1896.0,2.48394]
[1741926289633,0.00792246,1896.6,1896.2,3.2078]
[1741926289835,0.00792246,1896.6,1896.5,1.05476]
[1741926290134,0.00792246,1896.6,1896.5,1.4289]
[1741926290347,0.00792246,1896.6,1896.5,2.48366]
[1741926290541,1.36082246,1896.6,1896.5,2.48366]
[1741926291531,0.00792246,1896.6,1896.5,2.48366]
[1741926298138,1.32772246,1896.6,1896.5,2.48366]
[1741926298644,2.38242246,1896.6,1896.5,1.4289]
[1741926299040,1.32772246,1896.6,1896.5,2.48366]
[1741926300635,0.00792246,1896.6,1896.5,2.48366]
[1741926303032,3.2078,1897.2,1896.6,2.63677]
[1741926303033,2.9466,1897.2,1896.6,2.63677]
[1741926303237,1.3791,1897.1,1897.0,1.05445]
[1741926303844,1.05435,1897.3,1897.1,1.05441]
[1741926304036,2.43345,1897.3,1897.0,1.32912246]
[1741926304238,2.43345,1897.3,1897.1,1.05441]
[1741926304433,1.3791,1897.2,1897.1,1.05441]
[1741926305039,1.3791,1897.2,1897.1,1.05443]
[1741926305245,1.3791,1897.2,1897.0,2.38357246]
[1741926306041,1.3791,1897.2,1897.1,1.05443]
[1741926306946,1.3791,1897.2,1897.1,1.381]
[1741926307254,2.43347,1897.2,1897.1,1.381]
[1741926307548,1.3791,1897.2,1897.1,2.43543]
[1741926312052,1.3791,1897.2,1897.1,5.64323]
[1741926313849,0.00792246,1897.4,1897.1,4.5888]
[1741926314048,1.38332246,1897.4,1897.3,1.05431]
[1741926314654,2.43760246,1897.4,1897.2,2.41495]
[1741926315054,1.4104,1897.3,1897.2,2.41495]
[1741926319555,0.00792246,1897.4,1897.3,1.05431]
[1741926319758,1.33312246,1897.4,1897.3,2.35691]
[1741926320249,1.33312246,1897.4,1897.3,5.56471]
[1741926320457,0.6567,1897.7,1897.3,5.56471]
[1741926320458,2.274,1897.7,1897.4,2.63565]
[1741926320654,3.5992,1897.7,1897.6,1.05415]
[1741926320951,2.274,1897.7,1897.6,1.05415]
[1741926321154,2.274,1897.7,1897.6,2.46395]
[1741926322853,2.274,1897.7,1897.6,1.05415]
[1741926323053,2.274,1897.7,1897.5,1.3677]
[1741926323259,1.05415,1897.6,1897.5,0.6608]
[1741926323456,3.32814,1897.7,1897.5,1.715]
[1741926323756,2.9242,1897.7,1897.6,1.05415]
[1741926324150,3.97833,1897.7,1897.5,3.12479]
[1741926324351,2.9242,1897.7,1897.6,1.05415]
[1741926324748,3.97832,1897.7,1897.5,3.12477]